fUSD/lending_fUSD_20250417
["ID","MTS","AMOUNT","RATE_DAILY","PERIOD"]
[358252934,1744876326768,-500.0,0.00052602,120]
[358252935,1744876326778,-614.33,0.00052602,120]
[358252936,1744876326788,-1012.01,0.00052602,120]
[358252937,1744876326798,-2529.41,0.00052602,120]
[358252938,1744876326808,-1942.54,0.00052602,120]
[358252939,1744876326818,-500.0,0.00052602,120]
[358252940,1744876326827,-2464.72,0.00052602,120]
[358252941,1744876326837,-1110.2,0.00052602,120]
[358252942,1744876326848,-771.84,0.00052602,120]
[358252943,1744876326857,-1931.2,0.00052602,120]
[358252944,1744876326867,-500.0,0.00052602,120]
[358252945,1744876326877,-500.0,0.00052602,120]
[358252946,1744876326887,-676.22,0.00052602,120]
[358252947,1744876326897,-601.64,0.00052602,120]
[358252948,1744876326907,-500.0,0.00052602,120]
[358252949,1744876326918,-2027.54,0.00052602,120]
[358252950,1744876326927,-1731.61,0.00052602,120]
[358252951,1744876326937,-500.0,0.00052602,120]
[358252952,1744876326947,-506.42,0.00052602,120]
[358252953,1744876326957,-560.74,0.00052602,120]
[358252954,1744876326967,-500.0,0.00052602,120]
[358252955,1744876326976,-1571.6,0.00052602,120]
[358252956,1744876326986,-575.17,0.00052602,120]
[358252957,1744876326996,-500.0,0.00052602,120]
[358252958,1744876327005,-500.0,0.00052602,120]
[358252959,1744876327015,-1491.97,0.00052602,120]
[358252960,1744876327026,-500.0,0.00052602,120]
[358252961,1744876327036,-1061.2,0.00052602,120]
[358252962,1744876327047,-500.0,0.00052602,120]
[358252963,1744876327057,-500.0,0.00052602,120]
[358252964,1744876327066,-559.87,0.00052602,120]
[358252965,1744876327076,-1783.03,0.00052602,120]
[358252966,1744876327087,-500.0,0.00052602,120]
[358252967,1744876327097,-500.0,0.00052602,120]
[358252968,1744876327106,-1489.6,0.00052602,120]
[358252969,1744876327116,-3035.42,0.00052602,120]
[358252970,1744876327128,-2015.28,0.00052602,120]
[358252971,1744876327138,-1985.57,0.00052602,120]
[358252972,1744876327148,-835.38,0.00052602,120]
[358252973,1744876327158,-500.0,0.00052602,120]
[358252974,1744876327170,-843.17,0.00052602,120]
[358252975,1744876327180,-728.48,0.00052602,120]
[358252976,1744876327190,-2125.57,0.00052602,120]
[358252977,1744876327200,-506.65,0.00052602,120]
[358252978,1744876327210,-517.91,0.00052602,120]
[358252979,1744876327220,-531.0,0.00052602,120]
[358252980,1744876327230,-1110.06,0.00052602,120]
[358252981,1744876327240,-500.0,0.00052602,120]
[358252982,1744876327250,-3548.1,0.00052602,120]
[358252983,1744876327260,-887.03,0.00052602,120]
[358252984,1744876327270,-1073.22,0.00052602,120]
[358252985,1744876327280,-500.0,0.00052602,120]
[358252986,1744876327290,-637.66007604,0.00052602,120]
[358252987,1744876327300,-179.89609929,0.00052602,120]
[358252988,1744876327311,-500.0,0.00052602,120]
[358252989,1744876327321,-2110.0,0.00052602,30]
[358252990,1744876327331,-500.0,0.00052602,120]
[358252991,1744876327341,-1152.77,0.00052602,120]
[358252992,1744876327351,-500.0,0.00052602,120]
[358252993,1744876327363,-2168.54,0.00052602,120]
[358252994,1744876327373,-568.46,0.00052602,120]
[358252995,1744876327383,-309.60922603,0.00052602,120]
[358252996,1744876327394,-500.0,0.00052602,120]
[358252997,1744876327404,-246.23836105,0.00052602,120]
[358252998,1744876327413,-888.6,0.00052602,120]
[358252999,1744876327423,-500.0,0.00052602,120]
[358253000,1744876327433,-1780.21,0.00052602,120]
[358253001,1744876327443,-979.12,0.00052602,120]
[358253002,1744876327453,-2832.46,0.00052602,120]
[358253003,1744876327463,-1076.61,0.00052602,120]
[358253004,1744876327472,-518.93,0.00052602,120]
[358253005,1744876327482,-500.0,0.00052602,120]
[358253006,1744876327492,-889.68,0.00052602,120]
[358253007,1744876327502,-500.0,0.00052602,120]
[358253008,1744876327513,-3566.71,0.00052602,120]
[358253009,1744876327523,-1124.76,0.00052602,120]
[358253010,1744876327533,-1217.56,0.00052602,120]
[358253011,1744876327543,-1092.56,0.00052602,120]
[358253012,1744876327552,-1639.19,0.00052602,120]
[358253013,1744876327562,-500.0,0.00052602,120]
[358253014,1744876327571,-972.81,0.00052602,118]
[358253015,1744876327581,-1788.27,0.00052602,120]
[358253016,1744876327591,-861.37,0.00052602,120]
[358253017,1744876327600,-822.54,0.00052602,120]
[358253018,1744876327610,-500.0,0.00052602,120]
[358253019,1744876327620,-702.66,0.00052602,120]
[358253020,1744876327630,-1270.01,0.00052602,120]
[358253021,1744876327639,-424.81041162,0.00052602,120]
[358253022,1744876327649,-909.8,0.00052602,120]
[358253023,1744876327658,-593.0,0.00052602,120]
[358253024,1744876327668,-753.51,0.00052602,120]
[358253025,1744876327678,-516.56,0.00052602,120]
[358253026,1744876327688,-973.47,0.00052602,120]
[358253027,1744876327697,-500.0,0.00052602,120]
[358253028,1744876327707,-2790.52,0.00052602,120]
[358253029,1744876327716,-500.0,0.00052602,120]
[358253030,1744876327726,-500.0,0.00052602,120]
[358253031,1744876327735,-554.36,0.00052602,120]
[358253032,1744876327745,-555.93,0.00052602,120]
[358253033,1744876327755,-1344.71,0.00052602,120]
[358253034,1744876327765,-1633.9,0.00052602,120]
[358253035,1744876327775,-1508.99,0.00052602,120]
[358253036,1744876327785,-801.2,0.00052602,120]
[358253037,1744876327795,-2484.07,0.00052602,120]
[358253038,1744876327805,-500.0,0.00052602,120]
[358253039,1744876327815,-3739.63,0.00052602,120]
[358253040,1744876327825,-605.98,0.00052602,120]
[358253041,1744876327835,-3141.6,0.00052602,120]
[358253042,1744876327845,-536.48,0.00052602,120]
[358253043,1744876327855,-1042.98,0.00052602,120]
[358253044,1744876327865,-1821.22,0.00052602,120]
[358253045,1744876327875,-1155.97,0.00052602,120]
[358253046,1744876327884,-500.0,0.00052602,120]
[358253047,1744876327895,-608.82,0.00052602,120]
[358253048,1744876327904,-1542.01,0.00052602,120]
[358253049,1744876327914,-500.0,0.00052602,120]
[358253050,1744876327924,-608.54,0.00052602,120]
[358253051,1744876327934,-1023.29,0.00052602,120]
[358253052,1744876327944,-505.15,0.00052602,120]
[358253053,1744876327954,-512.28,0.00052602,120]
[358253054,1744876328144,-996.12,0.00052602,120]
[358253055,1744876328156,-500.0,0.00052602,120]
[358253056,1744876328167,-821.03,0.00052602,120]
[358253057,1744876328176,-500.0,0.00052602,120]
[358253058,1744876328186,-533.51,0.00052602,120]
[358253059,1744876328196,-1488.96,0.00052602,120]
[358253060,1744876328206,-2888.97,0.00052602,120]
[358253061,1744876328217,-500.0,0.00052602,120]
[358253062,1744876328227,-605.83,0.00052602,120]
[358253063,1744876328236,-570.18,0.00052602,120]
[358253064,1744876328245,-722.72,0.00052602,120]
[358253065,1744876328255,-754.15,0.00052602,120]
[358253066,1744876328265,-1214.83,0.00052602,120]
[358253067,1744876328274,-500.0,0.00052602,120]
[358253068,1744876328284,-500.0,0.00052602,2]
[358253069,1744876328293,-1002.18,0.00052602,8]
[358253070,1744876328303,-1218.38,0.00052602,120]
[358253071,1744876328312,-1097.9,0.00052602,120]
[358253072,1744876328321,-500.0,0.00052602,120]
[358253073,1744876328330,-1622.19,0.00052602,120]
[358253074,1744876328340,-7361.74,0.00052602,120]
[358253075,1744876328349,-779.5,0.00052602,120]
[358253076,1744876328358,-2365.86,0.00052602,120]
[358253077,1744876328370,-563.56,0.00052627,2]
[358253078,1744876328380,-239.43,0.00052761,120]
[358253079,1744876328389,-645.33913,0.00052808,120]
[358253080,1744876328400,-2000.0,0.00052808,120]
[358253081,1744876328410,-529.03693,0.00052808,120]
[358253082,1744876328420,-200.0,0.00052808,120]
[358253083,1744876328430,-152.0,0.00052839,4]
[358253084,1744876328439,-500.0,0.00052876,120]
[358253085,1744876328449,-591.156374,0.00052876,120]
[358253086,1744876328458,-227.981738,0.00052876,120]
[358253087,1744876328467,-500.0,0.00052876,120]
[358253088,1744876328477,-1611.74,0.00052876,120]
[358253089,1744876328486,-772.09,0.00052876,120]
[358253090,1744876328496,-3077.05,0.00052876,120]
[358253091,1744876328505,-500.0,0.00052876,120]
[358253092,1744876328515,-500.0,0.00052876,120]
[358253093,1744876328525,-516.0,0.00052876,120]
[358253094,1744876328534,-825.74,0.00052876,120]
[358253095,1744876328543,-500.0,0.00052876,120]
[358253096,1744876328553,-500.0,0.00052876,120]
[358253097,1744876328562,-1329.86,0.00052876,120]
[358253098,1744876328571,-1041.46,0.00052876,120]
[358253099,1744876328581,-278.24604525,0.00052876,120]
[358253100,1744876328590,-500.0,0.00052876,120]
[358253101,1744876328600,-995.71,0.00052876,120]
[358253102,1744876328609,-500.0,0.00052876,120]
[358253103,1744876328619,-561.46,0.00052876,30]
[358253104,1744876328628,-889.17,0.00052876,120]
[358253105,1744876328637,-1598.19,0.00052876,120]
[358253106,1744876328647,-550.93808933,0.00052876,120]
[358253107,1744876328656,-2447.13,0.00052876,120]
[358253108,1744876328665,-934.81,0.00052876,120]
[358253109,1744876328675,-500.0,0.00052876,120]
[358253110,1744876328685,-558.88,0.00052876,120]
[358253111,1744876328694,-500.0,0.00052876,120]
[358253112,1744876328704,-271.56001047,0.00052876,120]
[358253113,1744876328715,-120995.21,0.00052876,7]
[358253114,1744876328724,-500.0,0.00052876,120]
[358253115,1744876328734,-1597.3,0.00052876,120]
[358253116,1744876328743,-724.18,0.00052876,2]
[358253117,1744876328752,-500.0,0.00052876,120]
[358253118,1744876328762,-1073.23,0.00052876,120]
[358253119,1744876328771,-852.63,0.00052876,120]
[358253120,1744876328780,-9618.82,0.00052876,2]
[358253121,1744876328790,-500.0,0.00052876,120]
[358253122,1744876328799,-748.68,0.00052876,120]
[358253123,1744876328809,-507.6,0.00052876,120]
[358253124,1744876328818,-4167.06,0.00052876,120]
[358253125,1744876328827,-547.49,0.00052876,120]
[358253126,1744876328836,-762.47,0.00052876,120]
[358253127,1744876328845,-1761.11,0.00052876,120]
[358253128,1744876328855,-376.23201855,0.00052876,120]
[358253129,1744876328864,-603.07,0.00052876,120]
[358253130,1744876328873,-677.96,0.00052876,120]
[358253131,1744876328882,-895.97,0.00052876,120]
[358253132,1744876328892,-2042.51,0.00052876,120]
[358253133,1744876328901,-2095.32,0.00052876,120]
[358253134,1744876328911,-500.0,0.00052876,120]
[358253135,1744876328920,-783.72,0.00052876,120]
[358253136,1744876328930,-568.82,0.00052876,120]
[358253137,1744876328939,-670.78,0.00052876,120]
[358253138,1744876328948,-1727.55,0.00052876,120]
[358253139,1744876328958,-500.0,0.00052876,120]
[358253140,1744876328967,-500.0,0.00052876,120]
[358253141,1744876328977,-1214.17,0.00052876,120]
[358253142,1744876328987,-500.0,0.00052876,120]
[358253143,1744876328996,-563.29,0.00052876,120]
[358253144,1744876329005,-765.17,0.00052876,120]
[358253145,1744876329015,-781.9,0.00052876,120]
[358253146,1744876329024,-2735.7,0.00052876,120]
[358253147,1744876329034,-2102.94,0.00052876,120]
[358253148,1744876329043,-500.0,0.00052876,120]
[358253149,1744876329053,-541.28,0.00052876,120]
[358253150,1744876329062,-524.96,0.00052876,120]
[358253151,1744876329072,-500.0,0.00052876,120]
[358253152,1744876329082,-776.69,0.00052876,120]
[358253153,1744876329091,-1055.54,0.00052876,120]
[358253154,1744876329102,-1656.3,0.00052876,120]
[358253155,1744876329111,-1158.21,0.00052876,35]
[358253156,1744876329123,-1489.79,0.00052876,120]
[358253157,1744876329135,-500.0,0.00052876,120]
[358253158,1744876329145,-500.0,0.00052876,120]
[358253159,1744876329155,-1223.23,0.00052876,120]
[358253160,1744876329166,-1296.94,0.00052876,120]
[358253161,1744876329175,-606.92,0.00052876,120]
[358253162,1744876329185,-500.0,0.00052876,120]
[358253163,1744876329195,-1176.7,0.00052876,120]
[358253164,1744876329207,-1628.14,0.00052876,120]
[358253165,1744876329218,-1112.64,0.00052876,120]
[358253166,1744876329228,-2221.31,0.00052876,120]
[358253167,1744876329238,-500.0,0.00052876,120]
[358253168,1744876329248,-500.0,0.00052876,120]
[358253169,1744876329258,-500.0,0.00052876,120]
[358253170,1744876329268,-530.74,0.00052876,120]
[358253171,1744876329277,-862.16,0.00052876,120]
[358253172,1744876329287,-1379.41,0.00052876,120]
[358253173,1744876329297,-161.81805004,0.00052876,120]
[358253174,1744876329307,-507.47,0.00052876,120]
[358253175,1744876329317,-997.54,0.00052876,120]
[358253176,1744876329327,-500.0,0.00052876,120]
[358253177,1744876329337,-1247.38,0.00052876,120]
[358253178,1744876329352,-500.0,0.00052876,120]
[358253179,1744876329362,-519.16,0.00052876,120]
[358253180,1744876329373,-730.71,0.00052876,120]
[358253181,1744876329382,-946.46,0.00052876,120]
[358253182,1744876329392,-500.0,0.00052876,120]
[358253183,1744876329403,-500.0,0.00052876,120]
[358253184,1744876329416,-1007.48,0.00052876,120]
[358253185,1744876329426,-559.91,0.00052876,120]
[358253186,1744876329435,-1373.68,0.00052876,120]
[358253187,1744876329444,-940.05,0.00052876,120]
[358253188,1744876329454,-500.0,0.00052876,120]
[358253189,1744876329464,-151.18491548,0.00052876,120]
[358253190,1744876329473,-1203.26,0.00052876,120]
[358253191,1744876329484,-825.67,0.00052876,120]
[358253192,1744876329493,-1575.92,0.00052876,120]
[358253193,1744876329503,-1004.58,0.00052876,120]
[358253194,1744876329513,-1167.01,0.00052876,120]
[358253195,1744876329524,-500.0,0.00052876,120]
[358253196,1744876329534,-701.01,0.00052876,120]
[358253197,1744876329544,-1323.83,0.00052876,120]
[358253198,1744876329554,-803.28,0.00052876,30]
[358253199,1744876329564,-507.89,0.00052876,120]
[358253200,1744876329574,-1748.54,0.00052876,120]
[358253201,1744876329583,-3514.34,0.00052876,120]
[358253202,1744876329593,-500.0,0.00052876,120]
[358253203,1744876329603,-1749.19,0.00052876,120]
[358253204,1744876329613,-1134.15,0.00052876,120]
[358253205,1744876329623,-500.0,0.00052876,120]
[358253206,1744876329632,-1115.45,0.00052876,120]
[358253207,1744876329642,-1157.9,0.00052876,120]
[358253208,1744876329652,-1269.95,0.00052876,120]
[358253209,1744876329662,-1020.0,0.00052876,120]
[358253210,1744876329672,-1129.1,0.00052876,120]
[358253211,1744876329682,-568.86,0.00052876,120]
[358253212,1744876329691,-1581.24,0.00052876,120]
[358253213,1744876329700,-766.52,0.00052876,120]
[358253214,1744876329710,-683.59,0.00052876,120]
[358253215,1744876329719,-500.0,0.00052876,120]
[358253216,1744876329728,-500.0,0.00052876,120]
[358253217,1744876329739,-605.07,0.00052876,120]
[358253218,1744876329748,-1943.48,0.00052876,120]
[358253219,1744876329757,-500.0,0.00052876,120]
[358253220,1744876329767,-945.69,0.00052876,120]
[358253221,1744876329777,-1873.76,0.00052876,120]
[358253222,1744876329786,-500.0,0.00052876,120]
[358253223,1744876329796,-566.9,0.00052876,120]
[358253224,1744876329805,-536.75,0.00052876,120]
[358253225,1744876329815,-500.0,0.00052876,30]
[358253226,1744876329824,-1511.21,0.00052876,120]
[358253227,1744876329833,-2015.84,0.00052876,120]
[358253228,1744876329843,-500.0,0.00052876,120]
[358253229,1744876329852,-576.1,0.00052876,120]
[358253230,1744876329861,-500.0,0.00052876,120]
[358253231,1744876329871,-503.02,0.00052876,120]
[358253232,1744876329880,-1485.3,0.00052876,120]
[358253233,1744876329889,-616.82,0.00052876,120]
[358253234,1744876329899,-1889.42,0.00052876,120]
[358253235,1744876329909,-500.0,0.00052876,120]
[358253236,1744876329918,-521.54,0.00052876,120]
[358253237,1744876329928,-500.0,0.00052876,120]
[358253238,1744876329938,-1626.25,0.00052876,120]
[358253239,1744876329947,-1339.26,0.00052876,120]
[358253240,1744876329958,-1497.28,0.00052876,120]
[358253241,1744876329967,-1832.25,0.00052876,120]
[358253242,1744876329976,-630.84,0.00052876,120]
[358253243,1744876329986,-500.0,0.00052876,120]
[358253244,1744876329995,-615.64,0.00052876,120]
[358253245,1744876330005,-500.0,0.00052876,120]
[358253246,1744876330015,-692.24,0.00052876,120]
[358253247,1744876330025,-210.19562213,0.00052876,120]
[358253248,1744876330034,-1231.98,0.00052876,120]
[358253249,1744876330044,-1043.32,0.00052876,120]
[358253250,1744876330054,-1684.61,0.00052876,120]
[358253251,1744876330064,-500.0,0.00052876,120]
[358253252,1744876330073,-500.0,0.00052876,120]
[358253253,1744876330083,-500.0,0.00052876,120]
[358253254,1744876330092,-668.2,0.00052876,120]
[358253255,1744876330102,-500.0,0.00052876,120]
[358253256,1744876330112,-500.0,0.00052876,120]
[358253257,1744876330122,-500.0,0.00052876,120]
[358253258,1744876330135,-864.39,0.00052876,120]
[358253259,1744876330145,-626.02,0.00052876,120]
[358253260,1744876330155,-1072.56,0.00052876,120]
[358253261,1744876330165,-1764.88,0.00052876,120]
[358253262,1744876330175,-500.0,0.00052876,120]
[358253263,1744876330184,-5640.62,0.00052876,120]
[358253264,1744876330194,-917.98,0.00052876,120]
[358253265,1744876330204,-1475.44,0.00052876,120]
[358253266,1744876330214,-270.98700561,0.00052876,120]
[358253267,1744876330224,-1612.75,0.00052876,120]
[358253268,1744876330234,-404.53966472,0.00052876,120]
[358253269,1744876330243,-500.0,0.00052876,120]
[358253270,1744876330253,-2211.01,0.00052876,120]
[358253271,1744876330263,-791.97,0.00052876,14]
[358253272,1744876330272,-1177.02,0.00052876,120]
[358253273,1744876330281,-1468.16,0.00052876,120]
[358253274,1744876330292,-1829.33,0.00052876,120]
[358253275,1744876330301,-500.0,0.00052876,120]
[358253276,1744876330311,-520.62,0.00052876,120]
[358253277,1744876330321,-500.0,0.00052876,120]
[358253278,1744876330330,-793.46,0.00052876,120]
[358253279,1744876330340,-500.0,0.00052876,120]
[358253280,1744876330349,-500.0,0.00052876,120]
[358253281,1744876330358,-1128.03,0.00052876,120]
[358253282,1744876330371,-500.0,0.00052876,120]
[358253283,1744876330380,-527.45,0.00052876,120]
[358253284,1744876330390,-500.0,0.00052876,120]
[358253285,1744876330399,-500.0,0.00052876,120]
[358253286,1744876330409,-674.54,0.00052876,120]
[358253287,1744876330419,-504.45,0.00052876,120]
[358253288,1744876330429,-500.0,0.00052876,120]
[358253289,1744876330441,-500.0,0.00052876,120]
[358253290,1744876330450,-500.0,0.00052876,120]
[358253291,1744876330459,-586.57,0.00052876,120]
[358253292,1744876330469,-500.0,0.00052876,120]
[358253293,1744876330478,-1036.71,0.00052876,120]
[358253294,1744876330489,-909.38,0.00052876,120]
[358253295,1744876330499,-500.0,0.00052876,120]
[358253296,1744876330508,-500.0,0.00052876,120]
[358253297,1744876330520,-1171.86,0.00052876,120]
[358253298,1744876330530,-2181.26,0.00052876,120]
[358253299,1744876330540,-500.0,0.00052876,120]
[358253300,1744876330550,-675.13,0.00052876,120]
[358253301,1744876330560,-500.0,0.00052876,120]
[358253302,1744876330569,-500.0,0.00052876,120]
[358253303,1744876330579,-500.0,0.00052876,120]
[358253304,1744876330588,-535.67602662,0.00052876,120]
[358253305,1744876330597,-1081.53,0.00052876,120]
[358253306,1744876330607,-1595.7,0.00052876,120]
[358253307,1744876330616,-500.0,0.00052876,120]
[358253308,1744876330626,-1097.37,0.00052876,120]
[358253309,1744876330635,-500.0,0.00052876,120]
[358253310,1744876330645,-1093.79,0.00052876,120]
[358253311,1744876330654,-722.02,0.00052876,120]
[358253312,1744876330664,-978.59,0.00052876,120]
[358253313,1744876330673,-1836.63,0.00052876,120]
[358253314,1744876330683,-500.0,0.00052876,120]
[358253315,1744876330692,-500.0,0.00052876,120]
[358253316,1744876330701,-614.33,0.00052876,120]
[358253317,1744876330711,-1012.01,0.00052876,120]
[358253318,1744876330720,-2529.41,0.00052876,120]
[358253319,1744876330729,-1942.54,0.00052876,120]
[358253320,1744876330739,-500.0,0.00052876,120]
[358253321,1744876330748,-2464.72,0.00052876,120]
[358253322,1744876330757,-1110.2,0.00052876,120]
[358253323,1744876330768,-771.84,0.00052876,120]
[358253324,1744876330778,-1931.2,0.00052876,120]
[358253325,1744876330787,-500.0,0.00052876,120]
[358253326,1744876330797,-500.0,0.00052876,120]
[358253327,1744876330807,-676.22,0.00052876,120]
[358253328,1744876330816,-601.64,0.00052876,120]
[358253329,1744876330825,-500.0,0.00052876,120]
[358253330,1744876330835,-2027.54,0.00052876,120]
[358253331,1744876330844,-1731.61,0.00052876,120]
[358253332,1744876330853,-500.0,0.00052876,120]
[358253333,1744876330862,-506.42,0.00052876,120]
[358253334,1744876330872,-560.74,0.00052876,120]
[358253335,1744876330882,-500.0,0.00052876,120]
[358253336,1744876330891,-1571.6,0.00052876,120]
[358253337,1744876330900,-575.17,0.00052876,120]
[358253338,1744876330910,-500.0,0.00052876,120]
[358253339,1744876330920,-500.0,0.00052876,120]
[358253340,1744876330930,-1491.97,0.00052876,120]
[358253341,1744876330939,-500.0,0.00052876,120]
[358253342,1744876330949,-1061.2,0.00052876,120]
[358253343,1744876330959,-500.0,0.00052876,120]
[358253344,1744876330969,-500.0,0.00052876,120]
[358253345,1744876330979,-559.87,0.00052876,120]
[358253346,1744876330988,-1783.03,0.00052876,120]
[358253347,1744876330998,-500.0,0.00052876,120]
[358253348,1744876331007,-500.0,0.00052876,120]
[358253349,1744876331017,-1489.6,0.00052876,120]
[358253350,1744876331027,-3035.42,0.00052876,120]
[358253351,1744876331036,-2015.28,0.00052876,120]
[358253352,1744876331045,-1985.57,0.00052876,120]
[358253353,1744876331055,-835.38,0.00052876,120]
[358253354,1744876331064,-500.0,0.00052876,120]
[358253355,1744876331074,-843.17,0.00052876,120]
[358253356,1744876331083,-728.48,0.00052876,120]
[358253357,1744876331092,-2125.57,0.00052876,120]
[358253358,1744876331101,-506.65,0.00052876,120]
[358253359,1744876331111,-517.91,0.00052876,120]
[358253360,1744876331120,-531.0,0.00052876,120]
[358253361,1744876331134,-1110.06,0.00052876,120]
[358253362,1744876331143,-500.0,0.00052876,120]
[358253363,1744876331153,-3548.1,0.00052876,120]
[358253364,1744876331162,-887.03,0.00052876,120]
[358253365,1744876331173,-1073.22,0.00052876,120]
[358253366,1744876331183,-500.0,0.00052876,120]
[358253367,1744876331192,-500.0,0.00052876,120]
[358253368,1744876331202,-500.0,0.00052876,120]
[358253369,1744876331213,-1152.77,0.00052876,120]
[358253370,1744876331223,-500.0,0.00052876,120]
[358253371,1744876331233,-2168.54,0.00052876,120]
[358253372,1744876331243,-568.46,0.00052876,120]
[358253373,1744876331254,-500.0,0.00052876,120]
[358253374,1744876331265,-888.6,0.00052876,120]
[358253375,1744876331274,-500.0,0.00052876,120]
[358253376,1744876331284,-1780.21,0.00052876,120]
[358253377,1744876331294,-979.12,0.00052876,120]
[358253378,1744876331304,-2832.46,0.00052876,120]
[358253379,1744876331313,-1076.61,0.00052876,120]
[358253380,1744876331323,-518.93,0.00052876,120]
[358253381,1744876331333,-500.0,0.00052876,120]
[358253382,1744876331525,-889.68,0.00052876,120]
[358253383,1744876331535,-500.0,0.00052876,120]
[358253384,1744876331545,-3566.71,0.00052876,120]
[358253385,1744876331555,-1124.76,0.00052876,120]
[358253386,1744876331564,-1217.56,0.00052876,120]
[358253387,1744876331573,-1092.56,0.00052876,120]
[358253388,1744876331583,-1639.19,0.00052876,120]
[358253389,1744876331592,-500.0,0.00052876,120]
[358253390,1744876331601,-972.81,0.00052876,118]
[358253391,1744876331611,-1788.27,0.00052876,120]
[358253392,1744876331620,-861.37,0.00052876,120]
[358253393,1744876331630,-822.54,0.00052876,120]
[358253394,1744876331639,-500.0,0.00052876,120]
[358253395,1744876331650,-702.66,0.00052876,120]
[358253396,1744876331659,-1270.01,0.00052876,120]
[358253397,1744876331668,-909.8,0.00052876,120]
[358253398,1744876331678,-593.0,0.00052876,120]
[358253399,1744876331687,-753.51,0.00052876,120]
[358253400,1744876331696,-516.56,0.00052876,120]
[358253401,1744876331706,-973.47,0.00052876,120]
[358253402,1744876331716,-500.0,0.00052876,120]
[358253403,1744876331725,-2790.52,0.00052876,120]
[358253404,1744876331735,-500.0,0.00052876,120]
[358253405,1744876331744,-500.0,0.00052876,120]
[358253406,1744876331754,-554.36,0.00052876,120]
[358253407,1744876331764,-555.93,0.00052876,120]
[358253408,1744876331774,-1344.71,0.00052876,120]
[358253409,1744876331783,-1633.9,0.00052876,120]
[358253410,1744876331793,-1508.99,0.00052876,120]
[358253411,1744876331803,-801.2,0.00052876,120]
[358253412,1744876331812,-2484.07,0.00052876,120]
[358253413,1744876331821,-500.0,0.00052876,120]
[358253414,1744876331831,-3739.63,0.00052876,120]
[358253415,1744876331840,-605.98,0.00052876,120]
[358253416,1744876331850,-3141.6,0.00052876,120]
[358253417,1744876331860,-536.48,0.00052876,120]
[358253418,1744876331870,-1042.98,0.00052876,120]
[358253419,1744876331880,-1821.22,0.00052876,120]
[358253420,1744876331890,-1155.97,0.00052876,120]
[358253421,1744876331899,-500.0,0.00052876,120]
[358253422,1744876331909,-608.82,0.00052876,120]
[358253423,1744876331920,-1542.01,0.00052876,120]
[358253424,1744876331930,-500.0,0.00052876,120]
[358253425,1744876331940,-608.54,0.00052876,120]
[358253426,1744876331949,-1023.29,0.00052876,120]
[358253427,1744876331959,-505.15,0.00052876,120]
[358253428,1744876331968,-512.28,0.00052876,120]
[358253429,1744876331977,-996.12,0.00052876,120]
[358253430,1744876331987,-500.0,0.00052876,120]
[358253431,1744876331997,-821.03,0.00052876,120]
[358253432,1744876332006,-500.0,0.00052876,120]
[358253433,1744876332016,-533.51,0.00052876,120]